fUST/lending_fUST_20250530
["ID","MTS","AMOUNT","RATE_DAILY","PERIOD"]
[363009485,1748549440391,-1845.48,0.00019452,2]
[363009487,1748549440400,-430.0,0.00019452,2]
[363009489,1748549440409,-1439.05,0.00019452,2]
[363009491,1748549440419,-430.0,0.00019452,2]
[363009493,1748549440428,-430.0,0.00019452,2]
[363009494,1748549440437,-5099.18,0.00019452,2]
[363009496,1748549440452,-470.0,0.00019452,2]
[363009499,1748549440461,-430.0,0.00019452,2]
[363009502,1748549440471,-430.0,0.00019452,2]
[363009505,1748549440480,-430.0,0.00019452,2]
[363009508,1748549440489,-430.0,0.00019452,2]
[363009510,1748549440499,-470.0,0.00019452,2]
[363009512,1748549440508,-2614.13,0.00019452,2]
[363009514,1748549440518,-513.40822371,0.00019452,2]
[363009516,1748549440528,-430.0,0.00019452,2]
[363009518,1748549440537,-3219.84,0.00019452,2]
[363009520,1748549440547,-765.63,0.00019452,2]
[363009522,1748549440556,-430.0,0.00019452,2]
[363009524,1748549440566,-3876.68,0.00019452,2]
[363009526,1748549440575,-430.0,0.00019452,2]
[363009528,1748549440585,-495.3,0.00019452,2]
[363009530,1748549440594,-2095.37,0.00019452,2]
[363009532,1748549440605,-430.0,0.00019452,2]
[363009533,1748549440615,-470.0,0.00019452,2]
[363009535,1748549440627,-11864.57,0.00019452,2]
[363009537,1748549440636,-725.41,0.00019452,2]
[363009539,1748549440646,-450.0,0.00019452,2]
[363009541,1748549440655,-430.0,0.00019452,2]
[363009542,1748549440664,-574.83,0.00019452,2]
[363009543,1748549440673,-674.31,0.00019452,2]
[363009544,1748549440682,-899.16,0.00019452,2]
[363009545,1748549440691,-270.0,0.00019452,2]
[363009546,1748549440700,-953.05,0.00019452,2]
[363009547,1748549440709,-430.0,0.00019452,2]
[363009548,1748549440718,-430.0,0.00019452,2]
[363009549,1748549440727,-430.0,0.00019452,2]
[363009550,1748549440736,-430.0,0.00019452,2]
[363009551,1748549440745,-450.0,0.00019452,2]
[363009552,1748549440754,-533.14642579,0.00019452,2]
[363009553,1748549440763,-1910.48,0.00019452,2]
[363009554,1748549440771,-1205.75,0.00019452,2]
[363009555,1748549440780,-430.0,0.00019452,2]
[363009556,1748549440789,-984.37,0.00019452,2]
[363009557,1748549440797,-430.0,0.00019452,2]
[363009558,1748549440806,-7352.62,0.00019452,2]
[363009559,1748549440815,-430.0,0.00019452,2]
[363009560,1748549440824,-430.0,0.00019452,2]
[363009561,1748549440833,-594.42,0.00019452,2]
[363009562,1748549440842,-470.0,0.00019452,2]
[363009563,1748549440851,-430.0,0.00019452,2]
[363009564,1748549440860,-430.0,0.00019452,2]
[363009565,1748549440869,-430.0,0.00019452,2]
[363009566,1748549440879,-430.0,0.00019452,2]
[363009567,1748549440887,-470.0,0.00019452,2]
[363009568,1748549440896,-1874.18,0.00019452,2]
[363009569,1748549440905,-430.0,0.00019452,2]
[363009570,1748549440914,-12309.9,0.00019452,2]
[363009571,1748549440923,-430.0,0.00019452,2]
[363009572,1748549440932,-430.0,0.00019452,2]
[363009573,1748549440941,-430.0,0.00019452,2]
[363009574,1748549440950,-5362.8,0.00019452,2]
[363009575,1748549440959,-430.0,0.00019452,2]
[363009576,1748549440967,-5190.7,0.00019452,2]
[363009577,1748549440976,-7566.48,0.00019452,2]
[363009578,1748549440985,-430.0,0.00019452,2]
[363009579,1748549440994,-1104.35,0.00019452,2]
[363009580,1748549441003,-6241.32,0.00019452,2]
[363009581,1748549441012,-430.0,0.00019452,2]
[363009582,1748549441021,-430.0,0.00019452,2]
[363009583,1748549441029,-430.0,0.00019452,2]
[363009584,1748549441039,-430.0,0.00019452,2]
[363009585,1748549441048,-470.0,0.00019452,2]
[363009586,1748549441056,-430.0,0.00019452,2]
[363009587,1748549441065,-430.0,0.00019452,2]
[363009588,1748549441074,-641.57,0.00019452,2]
[363009589,1748549441083,-447.91,0.00019452,2]
[363009590,1748549441092,-1205.76,0.00019452,2]
[363009591,1748549441100,-430.0,0.00019452,2]
[363009592,1748549441110,-430.0,0.00019452,2]
[363009593,1748549441119,-430.0,0.00019452,2]
[363009594,1748549441128,-430.0,0.00019452,2]
[363009595,1748549441137,-228.16306545,0.00019452,2]
[363009596,1748549441146,-270.0,0.00019452,2]
[363009597,1748549441154,-3425.09,0.00019452,2]
[363009598,1748549441162,-175.26726233,0.00019452,2]
[363009599,1748549441171,-430.0,0.00019452,2]
[363009600,1748549441180,-430.0,0.00019452,2]
[363009601,1748549441190,-430.0,0.00019452,2]
[363009602,1748549441199,-5494.42,0.00019452,2]
[363009604,1748549441209,-430.0,0.00019452,2]
[363009606,1748549441218,-500.0,0.00019473,2]
[363009608,1748549441227,-500.0,0.00019473,2]
[363009610,1748549441237,-500.0,0.00019473,2]
[363009612,1748549441247,-500.0,0.00019473,2]
[363009614,1748549441256,-500.0,0.00019473,2]
[363009616,1748549441265,-500.0,0.00019473,2]
[363009618,1748549441275,-500.0,0.00019473,2]
[363009620,1748549441285,-500.0,0.00019473,2]
[363009622,1748549441294,-500.0,0.00019473,2]
[363009624,1748549441303,-500.0,0.00019473,2]
[363009626,1748549441313,-500.0,0.00019473,2]
[363009628,1748549441323,-2677.09662355,0.00019489,2]
[363009630,1748549441333,-519.47835529,0.00019491,2]
[363009632,1748549441342,-151.0,0.000195,2]
[363009634,1748549441351,-151.0,0.000196,2]
[363009636,1748549441361,-256.74,0.0001969,2]
[363009638,1748549441370,-2677.09662355,0.00019695,2]
[363009640,1748549441379,-553.0,0.00019699,2]
[363009642,1748549441389,-208.48728359,0.00019699,2]
[363009644,1748549441398,-151.0,0.000197,2]
[363009646,1748549441407,-151.0,0.000197,2]
[363009648,1748549441417,-291.64122963,0.00019726,2]
[363009650,1748549441426,-430.0,0.00019726,2]
[363009652,1748549441435,-430.0,0.00019726,2]
[363009654,1748549441445,-430.0,0.00019726,2]
[363009656,1748549441454,-430.0,0.00019726,2]
[363009658,1748549441463,-430.0,0.00019726,2]
[363009660,1748549441473,-430.0,0.00019726,2]
[363009662,1748549441483,-430.0,0.00019726,2]
[363009664,1748549441492,-430.0,0.00019726,2]
[363009666,1748549441501,-430.0,0.00019726,2]
[363009668,1748549441510,-548.35614709,0.00019726,2]
[363009670,1748549441520,-422.14914117,0.00019726,2]
[363009672,1748549441529,-430.0,0.00019726,2]
[363009674,1748549441539,-546.20092609,0.00019726,2]
[363009676,1748549441548,-428.46454902,0.00019726,2]
[363009678,1748549441557,-430.0,0.00019726,2]
[363009680,1748549441566,-430.0,0.00019726,2]
[363009682,1748549441576,-458.56347625,0.00019726,2]
[363009684,1748549441585,-430.0,0.00019726,2]
[363009686,1748549441594,-430.0,0.00019726,2]
[363009688,1748549441606,-515.62501383,0.00019726,2]
[363009690,1748549441615,-430.0,0.00019726,2]
[363009691,1748549441625,-430.0,0.00019726,2]
[363009694,1748549441635,-540.60008619,0.00019726,2]
[363009695,1748549441644,-430.0,0.00019726,2]
[363009697,1748549441654,-430.0,0.00019726,2]
[363009699,1748549441663,-430.0,0.00019726,2]
[363009701,1748549441673,-430.0,0.00019726,2]
[363009703,1748549441685,-474.5987658,0.00019726,2]
[363009705,1748549441695,-430.0,0.00019726,2]
[363009708,1748549441706,-430.0,0.00019726,2]
[363009709,1748549441715,-430.0,0.00019726,2]
[363009710,1748549441724,-430.0,0.00019726,2]
[363009711,1748549441733,-430.0,0.00019726,2]
[363009712,1748549441742,-441.17442534,0.00019726,2]
[363009713,1748549441751,-430.0,0.00019726,2]
[363009714,1748549441760,-450.0,0.00019726,2]
[363009715,1748549441769,-430.0,0.00019726,2]
[363009716,1748549441779,-430.0,0.00019726,2]
[363009717,1748549441787,-430.0,0.00019726,2]
[363009718,1748549441796,-430.0,0.00019726,2]
[363009720,1748549441806,-430.0,0.00019726,2]
[363009722,1748549441815,-430.0,0.00019726,2]
[363009733,1748549441908,-410.0,0.00019726,2]
[363009735,1748549441919,-430.0,0.00019726,2]
[363009737,1748549441928,-430.0,0.00019726,2]
[363009739,1748549441938,-430.0,0.00019726,2]
[363009742,1748549441947,-430.0,0.00019726,2]
[363009743,1748549441956,-430.0,0.00019726,2]
[363009746,1748549441965,-343.86598665,0.00019726,2]
[363009748,1748549441975,-430.0,0.00019726,2]
[363009750,1748549441984,-430.0,0.00019726,2]
[363009752,1748549441993,-430.0,0.00019726,2]
[363009754,1748549442002,-430.0,0.00019726,2]
[363009756,1748549442011,-430.0,0.00019726,2]
[363009758,1748549442020,-430.0,0.00019726,2]
[363009760,1748549442030,-430.0,0.00019726,2]
[363009762,1748549442039,-430.0,0.00019726,2]
[363009764,1748549442049,-430.0,0.00019726,2]
[363009765,1748549442059,-430.0,0.00019726,2]
[363009767,1748549442067,-170.54197152,0.00019726,2]
[363009769,1748549442077,-430.0,0.00019726,2]
[363009771,1748549442086,-440.0,0.00019726,2]
[363009773,1748549442095,-511.29,0.00019726,2]
[363009775,1748549442104,-430.0,0.00019726,2]
[363009777,1748549442113,-430.0,0.00019726,2]
[363009779,1748549442122,-530.0,0.00019726,2]
[363009782,1748549442131,-430.0,0.00019726,2]
[363009783,1748549442141,-450.0,0.00019726,2]
[363009786,1748549442150,-510.0,0.00019726,2]
[363009788,1748549442159,-430.0,0.00019726,2]
[363009790,1748549442169,-430.0,0.00019726,2]
[363009791,1748549442178,-541.02126116,0.00019726,2]
[363009794,1748549442187,-355.01684047,0.00019726,2]
[363009795,1748549442197,-430.0,0.00019726,2]
[363009798,1748549442206,-430.0,0.00019726,2]
[363009799,1748549442215,-430.0,0.00019726,2]
[363009802,1748549442225,-2547.3,0.00019726,2]
[363009804,1748549442234,-430.0,0.00019726,2]
[363009806,1748549442243,-430.0,0.00019726,2]
[363009808,1748549442253,-470.0,0.00019726,2]
[363009810,1748549442262,-430.0,0.00019726,2]
[363009812,1748549442271,-631.19,0.00019726,2]
[363009814,1748549442280,-442.35406267,0.00019726,2]
[363009817,1748549442290,-430.0,0.00019726,2]
[363009819,1748549442299,-430.0,0.00019726,2]
[363009821,1748549442309,-1493.21,0.00019726,2]
[363009823,1748549442318,-430.0,0.00019726,2]
[363009825,1748549442327,-461.52746359,0.00019726,2]
[363009828,1748549442337,-504.08,0.00019726,2]
[363009830,1748549442346,-310.0,0.00019726,2]
[363009832,1748549442355,-430.0,0.00019726,2]
[363009834,1748549442364,-430.0,0.00019726,2]
[363009836,1748549442374,-430.0,0.00019726,2]
[363009838,1748549442384,-430.0,0.00019726,2]
[363009841,1748549442393,-430.0,0.00019726,2]
[363009843,1748549442402,-430.0,0.00019726,2]
[363009845,1748549442411,-657.73,0.00019726,2]
[363009847,1748549442421,-430.0,0.00019726,2]
[363009849,1748549442430,-490.13800753,0.00019726,2]
[363009851,1748549442440,-263.77,0.00019726,2]
[363009854,1748549442450,-430.0,0.00019726,2]
[363009857,1748549442459,-430.0,0.00019726,2]
[363009859,1748549442468,-430.0,0.00019726,2]
[363009861,1748549442478,-430.0,0.00019726,2]
[363009863,1748549442489,-430.0,0.00019726,2]
[363009865,1748549442499,-430.0,0.00019726,2]
[363009867,1748549442508,-470.0,0.00019726,2]
[363009869,1748549442518,-430.0,0.00019726,2]
[363009871,1748549442528,-470.0,0.00019726,2]
[363009873,1748549442537,-430.0,0.00019726,2]
[363009875,1748549442547,-430.0,0.00019726,2]
[363009877,1748549442557,-1289.81,0.00019726,2]
[363009879,1748549442566,-151.0,0.00019726,2]
[363009881,1748549442576,-430.0,0.00019726,2]
[363009883,1748549442585,-430.0,0.00019726,2]
[363009885,1748549442595,-430.0,0.00019726,2]
[363009887,1748549442608,-430.0,0.00019726,2]
[363009889,1748549442617,-430.0,0.00019726,2]
[363009890,1748549442627,-430.0,0.00019726,2]
[363009893,1748549442638,-1598.38,0.00019726,2]
[363009895,1748549442649,-430.0,0.00019726,2]
[363009897,1748549442659,-151.0,0.00019726,2]
[363009899,1748549442668,-2053.27,0.00019726,2]
[363009901,1748549442678,-430.0,0.00019726,2]
[363009903,1748549442689,-443.97626816,0.00019726,2]
[363009905,1748549442699,-430.0,0.00019726,2]
[363009907,1748549442708,-1525.7,0.00019726,2]
[363009909,1748549442718,-430.0,0.00019726,2]
[363009911,1748549442727,-566.83,0.00019726,2]
[363009913,1748549442736,-430.0,0.00019726,2]
[363009915,1748549442746,-430.0,0.00019726,2]
[363009917,1748549442755,-430.0,0.00019726,2]
[363009919,1748549442764,-280.99538037,0.00019726,2]
[363009921,1748549442773,-151.0,0.00019726,2]
[363009923,1748549442782,-430.0,0.00019726,2]
[363009925,1748549442791,-430.0,0.00019726,2]
[363009927,1748549442801,-924.2,0.00019726,2]
[363009929,1748549442810,-430.0,0.00019726,2]
[363009931,1748549442820,-1613.56,0.00019726,2]
[363009933,1748549442829,-1663.74,0.00019726,2]
[363009935,1748549442839,-434.48,0.00019726,2]
[363009938,1748549442847,-430.0,0.00019726,2]
[363009940,1748549442857,-470.0,0.00019726,2]
[363009942,1748549442866,-430.0,0.00019726,2]
[363009944,1748549442875,-6345.2,0.00019726,2]
[363009946,1748549442884,-541.63,0.00019726,2]
[363009948,1748549442893,-430.0,0.00019726,2]
[363009950,1748549442903,-470.0,0.00019726,2]
[363009952,1748549442913,-835.53,0.00019726,2]
[363009954,1748549442922,-430.0,0.00019726,2]
[363009956,1748549442931,-574.61,0.00019726,2]
[363009958,1748549442940,-430.0,0.00019726,2]
[363009960,1748549442949,-430.0,0.00019726,2]
[363009962,1748549442959,-697.06,0.00019726,2]
[363009964,1748549442968,-430.0,0.00019726,2]
[363009966,1748549442978,-719.7,0.00019726,2]
[363009969,1748549442987,-430.0,0.00019726,2]
[363009971,1748549442997,-430.0,0.00019726,2]
[363009973,1748549443006,-430.0,0.00019726,2]
[363009975,1748549443014,-1058.87,0.00019726,2]
[363009977,1748549443023,-430.0,0.00019726,2]
[363009979,1748549443033,-430.0,0.00019726,2]
[363009981,1748549443042,-430.0,0.00019726,2]
[363009983,1748549443051,-430.0,0.00019726,2]
[363009985,1748549443060,-505.83,0.00019726,2]
[363009987,1748549443070,-507.35543612,0.00019726,2]
[363009989,1748549443078,-430.0,0.00019726,2]
[363009991,1748549443088,-470.0,0.00019726,2]
[363009993,1748549443097,-4239.46,0.00019726,2]
[363009995,1748549443107,-430.0,0.00019726,2]
[363009997,1748549443117,-430.0,0.00019726,2]
[363009999,1748549443129,-430.0,0.00019726,2]
[363010000,1748549443139,-430.0,0.00019726,2]
[363010002,1748549443148,-550.0,0.00019726,2]
[363010004,1748549443159,-430.0,0.00019726,2]
[363010006,1748549443168,-151.0,0.00019726,2]
[363010008,1748549443178,-151.0,0.00019726,2]
[363010010,1748549443187,-684.87,0.00019726,2]
[363010012,1748549443196,-430.0,0.00019726,2]
[363010014,1748549443206,-508.07271145,0.00019726,2]
[363010016,1748549443215,-430.0,0.00019726,2]
[363010018,1748549443224,-766.46,0.00019726,2]
[363010020,1748549443234,-430.0,0.00019726,2]
[363010022,1748549443243,-430.0,0.00019726,2]
[363010024,1748549443253,-430.0,0.00019726,2]
[363010026,1748549443263,-430.0,0.00019726,2]
[363010028,1748549443272,-1884.25,0.00019726,2]
[363010030,1748549443281,-8614.59,0.00019726,2]
[363010032,1748549443290,-430.0,0.00019726,2]
[363010034,1748549443300,-430.0,0.00019726,2]
[363010036,1748549443309,-430.0,0.00019726,2]
[363010038,1748549443318,-430.0,0.00019726,2]
[363010040,1748549443327,-9593.71,0.00019726,2]
[363010042,1748549443337,-500.0,0.00019726,2]
[363010044,1748549443347,-430.0,0.00019726,2]
[363010046,1748549443356,-430.0,0.00019726,2]
[363010048,1748549443366,-430.0,0.00019726,2]
[363010050,1748549443378,-430.0,0.00019726,2]
[363010052,1748549443387,-430.0,0.00019726,2]
[363010054,1748549443396,-171.58,0.00019726,2]
[363010056,1748549443405,-2177.87,0.00019726,2]
[363010058,1748549443415,-3170.25,0.00019726,2]
[363010060,1748549443424,-731.21,0.00019726,2]
[363010062,1748549443433,-4753.34,0.00019726,2]
[363010064,1748549443443,-151.0,0.00019726,2]
[363010066,1748549443453,-3190.48,0.00019726,2]
[363010068,1748549443462,-151.0,0.00019726,2]
[363010070,1748549443472,-151.0,0.00019726,2]
[363010072,1748549443482,-8930.54,0.00019726,2]
[363010074,1748549443491,-430.0,0.00019726,2]
[363010075,1748549443501,-430.0,0.00019726,2]
[363010078,1748549443510,-151.0,0.00019726,2]
[363010080,1748549443520,-3276.45,0.00019726,2]
[363010082,1748549443529,-1845.48,0.00019726,2]
[363010092,1748549443621,-962.473811,0.00019726,2]
[363010094,1748549443631,-430.0,0.00019726,2]
[363010096,1748549443640,-1439.05,0.00019726,2]
[363010098,1748549443650,-430.0,0.00019726,2]
[363010099,1748549443659,-962.473811,0.00019726,2]
[363010102,1748549443669,-342.862776,0.00019726,2]
[363010104,1748549443679,-430.0,0.00019726,2]
[363010106,1748549443690,-5099.18,0.00019726,2]
[363010108,1748549443701,-342.862776,0.00019726,2]
[363010110,1748549443710,-430.0,0.00019726,2]
[363010112,1748549443719,-450.0,0.00019726,2]
[363010114,1748549443729,-430.0,0.00019726,2]
[363010116,1748549443738,-1486.634382,0.00019726,2]
[363010118,1748549443747,-177.452289,0.00019726,2]
[363010119,1748549443756,-430.0,0.00019726,2]
[363010121,1748549443766,-1486.634382,0.00019726,2]
[363010124,1748549443775,-2614.13,0.00019726,2]
[363010126,1748549443785,-3219.84,0.00019726,2]
[363010128,1748549443794,-765.63,0.00019726,2]
[363010130,1748549443804,-430.0,0.00019726,2]
[363010132,1748549443814,-3876.68,0.00019726,2]
[363010134,1748549443824,-430.0,0.00019726,2]
[363010136,1748549443833,-495.3,0.00019726,2]
[363010138,1748549443842,-2095.37,0.00019726,2]
[363010140,1748549443852,-430.0,0.00019726,2]
[363010142,1748549443862,-11864.57,0.00019726,2]
[363010144,1748549443873,-151.0,0.00019726,2]
[363010146,1748549443882,-725.41,0.00019726,2]
[363010148,1748549443892,-430.0,0.00019726,2]
[363010150,1748549443902,-574.83,0.00019726,2]
[363010152,1748549443911,-674.31,0.00019726,2]
[363010154,1748549443920,-899.16,0.00019726,2]
[363010156,1748549443930,-953.05,0.00019726,2]
[363010158,1748549443939,-430.0,0.00019726,2]
[363010160,1748549443948,-490.0,0.00019726,2]
[363010162,1748549443958,-430.0,0.00019726,2]
[363010163,1748549443968,-151.0,0.00019726,2]
[363010165,1748549443977,-1910.48,0.00019726,2]
[363010167,1748549443987,-1205.75,0.00019726,2]
[363010169,1748549443996,-984.37,0.00019726,2]
[363010171,1748549444006,-7352.62,0.00019726,2]
[363010174,1748549444016,-430.0,0.00019726,2]
[363010176,1748549444025,-470.0,0.00019726,2]
[363010178,1748549444035,-470.0,0.00019726,2]
[363010180,1748549444044,-594.42,0.00019726,2]
[363010182,1748549444054,-430.0,0.00019726,2]
[363010183,1748549444063,-151.0,0.00019726,2]
[363010185,1748549444073,-518.81,0.00019726,2]
[363010187,1748549444082,-430.0,0.00019726,2]
[363010190,1748549444092,-430.0,0.00019726,2]
[363010192,1748549444102,-300.898304,0.00019726,2]
[363010194,1748549444111,-151.0,0.00019726,2]
[363010196,1748549444121,-152.303192,0.00019726,2]
[363010198,1748549444132,-1874.18,0.00019726,2]
[363010200,1748549444141,-430.0,0.00019726,2]
[363010202,1748549444151,-12309.9,0.00019726,2]
[363010204,1748549444160,-430.0,0.00019726,2]
[363010206,1748549444169,-470.0,0.00019726,2]
[363010208,1748549444178,-5362.8,0.00019726,2]
[363010210,1748549444187,-430.0,0.00019726,2]
[363010212,1748549444195,-5190.7,0.00019726,2]
[363010214,1748549444204,-7566.48,0.00019726,2]
[363010216,1748549444213,-430.0,0.00019726,2]
[363010218,1748549444222,-1104.35,0.00019726,2]
[363010220,1748549444231,-6241.32,0.00019726,2]
[363010222,1748549444239,-430.0,0.00019726,2]
[363010224,1748549444248,-430.0,0.00019726,2]
[363010226,1748549444257,-430.0,0.00019726,2]
[363010228,1748549444267,-434.84275888,0.00019726,2]
[363010229,1748549444276,-430.0,0.00019726,2]
[363010232,1748549444286,-430.0,0.00019726,2]
[363010234,1748549444295,-641.57,0.00019726,2]
[363010236,1748549444304,-447.91,0.00019726,2]
[363010238,1748549444313,-1205.76,0.00019726,2]
[363010240,1748549444322,-430.0,0.00019726,2]
[363010241,1748549444331,-430.0,0.00019726,2]
[363010243,1748549444340,-430.0,0.00019726,2]
[363010246,1748549444350,-430.0,0.00019726,2]
[363010248,1748549444359,-151.0,0.00019726,2]
[363010249,1748549444371,-3425.09,0.00019726,2]
[363010252,1748549444382,-430.0,0.00019726,2]
[363010254,1748549444391,-430.0,0.00019726,2]
[363010256,1748549444401,-430.0,0.00019726,2]
[363010258,1748549444411,-5494.42,0.00019726,2]
[363010260,1748549444420,-470.0,0.00019726,2]
[363010262,1748549444429,-158.3971896,0.00019726,2]
[363010264,1748549444439,-572.078714,0.00019726,2]
[363010266,1748549444448,-553.0,0.00019726,2]
[363010268,1748549444457,-553.0,0.00019754,2]
[363010269,1748549444466,-553.0,0.00019781,2]
[363010271,1748549444475,-151.0,0.000198,2]
[363010273,1748549444485,-151.0,0.000198,2]
[363010276,1748549444494,-553.0,0.00019809,2]
[363010277,1748549444504,-160.0,0.00019836,2]
[363010280,1748549444514,-212.70147903,0.00019836,2]
[363010282,1748549444524,-229.26895353,0.00019836,2]
[363010284,1748549444533,-842.5625,0.00019836,2]
[363010285,1748549444543,-12660.97845086,0.00019836,2]
[363010287,1748549444552,-423.31762986,0.00019836,2]
[363010289,1748549444562,-160.0,0.00019836,2]
[363010291,1748549444571,-160.0,0.00019836,2]
[363010293,1748549444580,-160.0,0.00019836,2]
[363010295,1748549444590,-160.0,0.00019836,2]
[363010297,1748549444600,-553.0,0.00019836,2]
[363010299,1748549444615,-160.0,0.00019838,2]
[363010301,1748549444626,-553.0,0.00019863,2]
[363010303,1748549444635,-519.47835529,0.0001988,2]
[363010306,1748549444646,-553.0,0.00019891,2]
[363010308,1748549444655,-151.0,0.000199,2]
[363010310,1748549444665,-151.0,0.000199,2]
[363010311,1748549444674,-2677.09662355,0.000199,2]
[363010313,1748549444683,-3014.44826533,0.000199,2]
[363010315,1748549444693,-553.0,0.00019918,2]
[363010317,1748549444703,-553.0,0.00019946,2]
[363010319,1748549444712,-501.72276857,0.00019973,2]
[363010322,1748549444722,-501.74427057,0.00019973,2]
[363010323,1748549444731,-500.0,0.00019973,2]
[363010325,1748549444741,-500.0,0.00019973,2]
[363010327,1748549444750,-500.94988306,0.00019973,2]
[363010329,1748549444760,-500.0,0.00019973,2]
[363010331,1748549444770,-534.44048896,0.00019973,2]
[363010333,1748549444779,-500.0,0.00019973,2]
[363010335,1748549444788,-500.0,0.00019973,2]
[363010337,1748549444797,-500.0,0.00019973,2]
[363010339,1748549444806,-500.0,0.00019973,2]
[363010341,1748549444815,-501.21422163,0.00019973,2]
[363010343,1748549444824,-500.0,0.00019973,2]
[363010345,1748549444833,-500.0,0.00019973,2]
[363010347,1748549444843,-500.0,0.00019973,2]
[363010349,1748549444852,-500.0,0.00019973,2]
[363010351,1748549444861,-600.0,0.00019973,2]
[363010353,1748549444871,-500.0,0.00019973,2]
[363010355,1748549444882,-500.0,0.00019973,2]
[363010357,1748549444891,-523.18118528,0.00019973,2]
[363010359,1748549444900,-553.0,0.00019973,2]
[363010361,1748549444910,-212.70147903,0.00019999,3]
[363010363,1748549444919,-12660.97845086,0.00019999,3]
[363010365,1748549444929,-314.78059479,0.00019999,3]
[363010367,1748549444938,-18784.25266462,0.00019999,3]
[363010369,1748549444947,-842.5625,0.0002,3]
[363010371,1748549444957,-256062.72633799,0.0002,2]
[363010373,1748549444966,-2403.0,0.0002,2]
[363010375,1748549444976,-370.67598761,0.0002,5]
[363010377,1748549444987,-151.0,0.0002,2]
[363010379,1748549444996,-430.0,0.0002,2]
[363010381,1748549445006,-430.0,0.0002,2]
[363010383,1748549445015,-430.0,0.0002,2]
[363010385,1748549445024,-430.0,0.0002,2]
[363010387,1748549445034,-430.0,0.0002,2]
[363010389,1748549445043,-430.0,0.0002,2]
[363010391,1748549445052,-430.0,0.0002,2]
[363010393,1748549445062,-430.0,0.0002,2]
[363010395,1748549445071,-440.0,0.0002,2]
[363010397,1748549445080,-430.0,0.0002,2]
[363010399,1748549445090,-430.0,0.0002,2]
[363010401,1748549445099,-430.0,0.0002,2]
[363010403,1748549445108,-430.0,0.0002,2]
[363010413,1748549445118,-234.04083357,0.0002,2]
[363010415,1748549445206,-208.25653715,0.0002,2]
[363010417,1748549445216,-430.0,0.0002,2]
[363010420,1748549445225,-430.0,0.0002,2]
[363010423,1748549445234,-430.0,0.0002,2]
[363010425,1748549445243,-430.0,0.0002,2]
[363010427,1748549445253,-430.0,0.0002,2]
[363010429,1748549445262,-430.0,0.0002,2]
[363010431,1748549445272,-470.0,0.0002,2]
[363010433,1748549445282,-430.0,0.0002,2]
[363010435,1748549445291,-430.0,0.0002,2]
[363010437,1748549445301,-470.0,0.0002,2]
[363010439,1748549445310,-430.0,0.0002,2]
[363010441,1748549445319,-430.0,0.0002,2]
[363010444,1748549445329,-510.0,0.0002,2]
[363010451,1748549445350,-430.0,0.0002,2]
[363010454,1748549445360,-430.0,0.0002,2]